bitfinex-derivatives/quotes_ETHF0:USTF0_20251009
["timestamp","ask_amount","ask_price","bid_price","bid_amount"]
[1759987853318,1.44367473,4452.2,4452.1,0.9945]
[1759987853518,1.12637473,4452.2,4452.1,0.9945]
[1759987854019,1.44367473,4452.2,4452.1,0.9945]
[1759987854221,1.12637473,4452.2,4452.1,0.9945]
[1759987854422,1.44517473,4452.2,4452.1,0.9945]
[1759987854621,1.65587473,4452.2,4452.1,0.9945]
[1759987859714,1.65587473,4452.2,4452.1,0.225]
[1759987860114,1.65587473,4452.2,4452.1,0.9863]
[1759987860320,1.44517473,4452.2,4452.1,0.9863]
[1759987862429,0.90927473,4452.2,4452.1,0.9863]
[1759987862730,0.22418508,4828.5,4452.1,0.9863]
[1759987862731,1.60441392,4453.5,4453.4,0.4041]
[1759987863022,0.4512,4454.0,4453.9,0.40405]
[1759987863223,0.3525,4454.5,4454.3,0.40401]
[1759987863428,0.3525,4454.5,4454.4,0.225]
[1759987863624,0.56500617,4454.5,4454.4,0.22748298]
[1759987864328,0.13570617,4454.5,4454.4,0.22748298]
[1759987865329,0.45300617,4454.5,4454.4,1.43032097]
[1759987865926,0.00180617,4454.5,4454.4,0.22748298]
[1759987866319,0.4512,4455.0,4454.8,0.40397]
[1759987866522,0.53781,4455.5,4455.1,0.40394]
[1759987866726,0.53781,4455.5,4455.4,1.19996294]
[1759987866727,0.4512,4455.5,4455.4,1.19996294]
[1759987866927,0.4512,4455.5,4455.4,1.42496294]
[1759987867317,0.45279337,4455.5,4455.4,1.42496294]
[1759987868130,0.67139337,4455.5,4455.4,1.42496294]
[1759987868321,0.67139337,4455.5,4455.4,1.72372471]
[1759987871834,3.84560696,4455.5,4455.4,0.29876177]
[1759987872034,3.84560696,4455.5,4455.4,0.52376177]
[1759987873935,3.84560696,4455.5,4455.4,1.484831]
[1759987874136,0.88209337,4455.5,4455.4,1.484831]
[1759987876134,0.74175,4455.0,4454.9,0.60066714]
[1759987876339,1.2967,4454.5,4454.4,0.00248298]
[1759987876538,1.2967,4454.5,4454.4,0.59607209]
[1759987876835,4.26266948,4454.5,4454.4,0.59607209]
[1759987877034,4.26266948,4454.5,4454.4,0.00248298]
[1759987878838,4.26266948,4454.5,4454.4,0.22748298]
[1759987884339,4.26266948,4454.5,4454.4,0.82761893]
[1759987885244,4.26266948,4454.5,4454.4,0.22748298]
[1759987887146,0.8594,4454.5,4454.4,1.4323825]
[1759987887346,0.8594,4454.5,4454.4,0.63149298]
[1759987888346,0.8594,4454.5,4454.4,1.8331203]
[1759987888942,0.4554,4454.5,4454.4,1.8331203]
[1759987889143,0.4554,4454.5,4454.4,0.63149298]
[1759987890148,0.4554,4454.5,4454.4,1.59256221]
[1759987891540,0.4554,4454.5,4454.4,0.63149298]
[1759987891739,0.4554,4454.5,4454.4,3.20027689]
[1759987892250,0.09050421,4454.5,4454.4,2.25416221]
[1759987893651,0.09050421,4454.5,4454.4,1.29309298]
[1759987893956,0.42830421,4454.5,4454.4,2.25416221]
[1759987895747,0.09050421,4454.5,4454.4,2.25416221]
[1759987895949,0.1263,4455.0,4454.4,2.25416221]
[1759987895950,0.1263,4455.0,4454.9,1.06556]
[1759987896151,0.84122,4455.4,4455.3,0.2245]
[1759987896445,1.17032,4455.4,4455.3,1.41056923]
[1759987896651,4.06395897,4455.4,4455.3,1.41056923]
[1759987897254,4.06395897,4455.4,4455.3,1.81449923]
[1759987897947,4.06395897,4455.4,4455.3,2.03779923]
[1759987898850,4.06395897,4455.4,4455.3,2.25179923]
[1759987898851,0.3291,4455.4,4455.3,2.25179923]
[1759987899154,0.33369337,4455.5,4455.4,1.07022]
[1759987899852,0.73760337,4455.5,4455.4,1.07022]
[1759987900455,1.08640337,4455.5,4455.4,1.07022]
[1759987900654,0.68249337,4455.5,4455.4,1.07022]
[1759987900854,0.46079337,4455.5,4455.4,1.07022]
[1759987901053,0.33369337,4455.5,4455.4,1.07022]
[1759987901551,1.08640337,4455.5,4455.4,1.07022]
[1759987902252,0.68249337,4455.5,4455.4,2.67879858]
[1759987902451,0.00159337,4455.5,4455.4,2.67879858]
[1759987902653,0.00159337,4455.5,4455.4,1.07022]
[1759987903253,0.32819337,4455.5,4455.4,2.67840747]
[1759987903751,0.4181,4456.4,4456.3,0.2122]
[1759987903943,0.82193,4456.4,4456.3,1.94006923]
[1759987904148,3.68780875,4456.4,4456.3,1.94006923]
[1759987904348,3.68780875,4456.4,4456.3,3.14544915]
[1759987904547,3.28397875,4456.4,4456.3,3.14544915]
[1759987904748,3.28608633,4456.4,4456.3,1.94006923]
[1759987905558,2.86798633,4456.4,4456.3,1.94006923]
[1759987906152,2.86798633,4456.4,4456.3,3.30497846]
[1759987906355,0.00210758,4456.4,4456.3,2.90113846]
[1759987907956,0.4181,4457.1,4457.0,0.754]
[1759987908153,0.7447,4457.1,4457.0,1.94006923]
[1759987908462,0.7447,4457.1,4457.0,3.14212475]
[1759987908760,0.7447,4457.1,4457.0,1.94006923]
[1759987908961,0.74718934,4457.1,4457.0,1.94006923]
[1759987909150,0.32908934,4457.1,4457.0,1.94006923]
[1759987909355,0.00248934,4457.1,4457.0,3.26771734]
[1759987910361,0.00248934,4457.1,4457.0,2.06626923]
[1759987914765,0.32908934,4457.1,4457.0,2.06626923]
[1759987915266,0.32908934,4457.1,4457.0,2.8662777]
[1759987915565,0.00248934,4457.1,4457.0,2.8662777]
[1759987919266,0.00248934,4457.1,4457.0,2.06626923]
[1759987919461,0.00248934,4457.1,4457.0,2.47003923]
[1759987920067,0.93964934,4457.1,4457.0,2.06626923]
[1759987920254,0.93964934,4457.1,4457.0,2.47003923]
[1759987920667,0.40624934,4457.1,4457.0,2.47003923]
[1759987921762,0.93964934,4457.1,4457.0,1.94006923]
[1759987921962,0.93964934,4457.1,4457.0,2.74039702]
[1759987922158,0.93964934,4457.1,4457.0,1.94006923]
[1759987922863,1.15094934,4457.1,4457.0,0.7684]
[1759987923063,1.15094934,4457.1,4457.0,1.39826923]
[1759987923367,1.15094934,4457.1,4457.0,1.94006923]
[1759987923662,0.40379,4456.8,4456.7,1.20144811]
[1759987923863,0.1251,4457.0,4456.5,0.2122]
[1759987923864,1.14851,4456.6,4456.5,0.2122]
[1759987924062,1.14851,4456.6,4456.5,0.4362]
[1759987924262,1.14851,4456.6,4456.5,0.7674]
[1759987924666,1.14851,4456.6,4456.5,0.2122]
[1759987924962,1.14853,4456.4,4456.3,1.7625638]
[1759987925263,1.14853,4456.4,4456.3,1.18606923]
[1759987925564,6.14853,4456.4,4456.3,0.225]
[1759987926063,6.14853,4456.4,4456.2,0.96106923]
[1759987926366,1.1486,4455.6,4455.5,0.754]
[1759987926559,1.1486,4455.6,4455.5,1.94006923]
[1759987928757,1.1486,4455.6,4455.5,1.60886923]
[1759987929469,1.1486,4455.6,4455.5,1.93066923]
[1759987930673,1.1486,4455.6,4455.5,1.60886923]
[1759987931074,6.1486,4455.6,4455.5,1.42975622]
[1759987931268,6.1486,4455.6,4455.5,0.225]
[1759987931677,9.07763886,4455.6,4455.5,1.02820578]
[1759987931978,9.07763886,4455.6,4455.5,0.8275086]
[1759987932775,4.07763886,4455.6,4455.5,2.18513465]
[1759987933473,4.07763886,4455.6,4455.5,2.98834043]
[1759987933675,4.07763886,4455.6,4455.5,1.24670578]
[1759987933880,4.07763886,4455.6,4455.5,0.4435]
[1759987934174,4.07763886,4455.6,4455.5,0.9876]
[1759987934980,1.1486,4455.6,4455.5,0.9876]
[1759987936970,0.4039,4455.7,4455.6,0.7626]
[1759987937173,0.4039,4455.7,4455.6,0.9876]
[1759987937580,0.7145,4455.7,4455.6,0.9876]
[1759987938777,0.7145,4455.7,4455.6,1.3915]
[1759987938974,0.9395,4455.7,4455.6,0.9876]
[1759987939174,1.1642,4455.7,4455.6,1.58927303]
[1759987941079,1.1642,4455.7,4455.6,0.9876]
[1759987941579,1.1642,4455.7,4455.6,1.79080578]
[1759987942181,1.1642,4455.7,4455.6,0.80320578]
[1759987942484,1.1642,4455.6,4455.5,0.80320578]
[1759987942685,1.1642,4455.6,4455.5,1.02820578]
[1759987942977,1.1642,4455.6,4455.5,2.19471578]
[1759987943183,1.1642,4455.6,4455.5,1.39151]
[1759987943687,1.1642,4455.6,4455.5,0.9876]
[1759987949292,1.1642,4455.6,4455.5,2.19235622]
[1759987949787,1.1642,4455.6,4455.5,2.59626622]
[1759987950400,1.1642,4455.6,4455.5,2.19235622]
[1759987951993,0.7145,4455.6,4455.5,2.19235622]
[1759987952294,0.93945,4456.1,4456.0,0.7626]
[1759987952495,1.16415,4456.1,4456.0,0.9876]
[1759987954090,1.16415,4456.1,4455.6,1.60368583]
[1759987954091,0.4397,4456.0,4455.6,1.60368583]
[1759987954297,0.4397,4456.0,4455.5,0.3218]
[1759987954298,0.7603,4455.7,4455.5,0.3218]
[1759987954597,1.02438392,4455.7,4455.6,0.7653]
[1759987954798,1.02438392,4455.7,4455.6,2.37607017]
[1759987954998,1.02438392,4455.7,4455.6,2.59837017]
[1759987955296,1.02438392,4455.7,4455.6,0.9876]
[1759987955897,1.02438392,4455.7,4455.6,2.59867393]
[1759987956098,0.71378392,4455.7,4455.6,0.9876]
[1759987956899,1.02438392,4455.7,4455.6,0.9876]
[1759987957894,1.02438392,4455.7,4455.6,0.7653]
[1759987958095,1.02438392,4455.7,4455.6,2.37685]
[1759987958893,1.02438392,4455.7,4455.6,2.59915]
[1759987959793,1.02438392,4455.7,4455.6,0.9876]
[1759987961000,0.62446,4456.0,4455.9,0.4402]
[1759987961199,0.62446,4456.0,4455.9,0.981]
[1759987961401,4.06043769,4456.0,4455.9,0.981]
[1759987963096,0.85266,4456.0,4455.9,1.38487]
[1759987963298,1.17136,4456.0,4455.9,1.38487]
[1759987963698,1.17136,4456.0,4455.9,0.954]
[1759987966300,0.40385,4456.2,4456.1,0.40385]
[1759987966493,0.60985,4456.2,4456.1,1.04205]
[1759987966693,0.60985,4456.2,4456.1,0.6382]
[1759987966997,0.92855,4456.2,4456.1,0.9782]
[1759987969500,1.14905,4456.2,4456.1,0.9782]
[1759987970001,1.14905,4456.2,4456.1,1.38205]
[1759987971298,0.60985,4456.3,4456.2,0.81705]
[1759987971494,0.206,4456.3,4456.2,2.36538238]
[1759987972088,0.60984,4456.3,4456.2,2.36538238]
[1759987973003,0.60984,4456.3,4456.2,1.96153238]
[1759987973689,1.14904,4456.3,4456.2,1.96153238]
[1759987974205,1.14904,4456.3,4456.2,2.36538238]
[1759987974800,1.14904,4456.3,4456.2,1.96153238]
[1759987975800,1.14904,4456.3,4456.2,1.75523238]
[1759987976392,1.14904,4456.3,4456.2,1.20833238]
[1759987976595,1.14904,4456.3,4456.0,1.20833238]
[1759987976596,0.40385,4456.1,4456.0,1.20833238]
[1759987976896,1.14905,4456.1,4456.0,1.43333238]
[1759987977090,4.09239638,4456.1,4456.0,1.43333238]
[1759987977893,4.09239638,4456.1,4456.0,1.98023238]
[1759987978601,4.09239638,4456.1,4456.0,1.43333238]
[1759987979303,4.09239638,4456.1,4456.0,0.225]
[1759987980501,4.09239638,4456.1,4456.0,0.565]
[1759987980702,4.09239638,4456.1,4456.0,0.7719]
[1759987981600,4.09239638,4456.1,4456.0,1.43421706]
[1759987983107,4.09239638,4456.1,4455.3,0.74392]
[1759987983108,1.24186,4456.0,4455.9,1.20921706]
[1759987983312,1.14915,4455.1,4455.0,1.61155]
[1759987983605,0.40395,4455.0,4454.9,1.95155]
[1759987983905,0.40395,4455.0,4454.9,0.225]
[1759987983906,1.27425,4455.0,4454.9,0.225]
[1759987984111,4.2216605,4455.0,4454.9,0.225]
[1759987984800,4.2216605,4455.0,4454.9,0.565]
[1759987985006,4.0965605,4455.0,4454.9,0.7719]
[1759987986605,4.2216605,4455.0,4454.9,0.225]
[1759987986801,4.2216605,4455.0,4454.9,0.565]
[1759987987010,2.9474105,4455.0,4454.9,1.38216]
[1759987987311,1.14911,4455.5,4455.4,0.7532]
[1759987987511,1.14911,4455.5,4455.4,0.9782]
[1759987987717,4.1312172,4455.5,4455.4,0.9782]
[1759987988102,0.4039,4455.6,4455.5,0.4039]
[1759987988302,0.4039,4455.6,4455.5,1.2814]
[1759987989109,0.6099,4455.6,4455.5,1.2814]
[1759987989309,0.6099,4455.6,4455.5,0.8775]
[1759987989613,1.1511,4455.6,4455.5,0.8775]
[1759987990214,1.1511,4455.6,4455.5,0.7532]
[1759987991512,1.1511,4455.6,4455.5,0.34]
[1759987991710,1.1511,4455.6,4455.5,0.5516]
[1759987993909,0.2282,4455.0,4454.9,0.40396]
[1759987994114,1.17335,4455.0,4454.9,0.71916]
[1759987994313,1.17335,4455.0,4454.9,0.94416]
[1759987994513,1.17335,4455.0,4454.9,1.15576]
[1759987994708,1.17335,4455.0,4454.9,0.7518]
[1759987995107,1.17335,4455.0,4454.7,0.86485812]
[1759987995108,1.17337,4454.8,4454.7,1.18005812]
[1759987995309,1.17338,4454.7,4454.6,1.26884812]
[1759987995510,1.17338,4454.7,4454.6,2.02064812]
[1759987995913,1.17338,4454.7,4454.6,1.61665812]
[1759987996418,1.17338,4454.7,4454.6,2.02064812]
[1759987999111,1.17338,4454.7,4454.6,1.61665812]
[1759987999719,1.17338,4454.7,4454.6,1.15579]
[1759988000221,1.17338,4454.7,4454.4,0.40649298]
[1759988000222,1.2985,4454.5,4454.4,0.40649298]
[1759988000517,1.2985,4454.5,4454.4,0.63149298]
[1759988000721,4.2042793,4454.5,4454.4,0.94669298]
[1759988001121,4.2042793,4454.5,4454.4,0.54268298]
[1759988001321,4.2042793,4454.5,4454.4,0.00248298]
[1759988001623,4.2042793,4454.5,4454.4,0.22748298]
[1759988003424,4.2042793,4454.5,4453.7,0.86485812]
[1759988003425,0.40406,4453.8,4453.7,1.20691872]
[1759988003720,1.01011,4454.1,4453.2,1.61155]
[1759988003721,1.17348,4453.6,4453.4,1.20691872]
[1759988003921,1.17348,4453.6,4453.5,0.7518]
[1759988004229,1.17348,4453.6,4453.5,1.40505812]
[1759988004522,1.17568596,4453.6,4453.5,1.81080586]
[1759988004825,1.17568596,4453.6,4453.5,1.49560586]
[1759988005622,1.17568596,4453.6,4453.5,1.40671586]
[1759988006730,1.17568596,4453.6,4453.5,1.61831586]
[1759988007226,1.17568596,4453.6,4453.5,0.75345774]
[1759988008224,1.17568596,4453.6,4453.5,0.54185774]
[1759988008521,1.17568596,4453.6,4453.5,0.22665774]
[1759988008830,1.17568596,4453.6,4453.5,1.15754774]
[1759988010522,0.00220596,4453.6,4453.5,1.50654774]
[1759988011127,0.00220596,4453.6,4453.5,6.50654774]
[1759988011829,0.77160596,4453.6,4453.5,6.50654774]
[1759988012226,1.17568596,4453.6,4453.5,0.93254774]
[1759988012528,1.17568596,4453.6,4453.5,0.75345774]
[1759988012728,1.17568596,4453.6,4453.5,1.15754774]
[1759988013430,0.77160596,4453.6,4453.5,1.37634774]
[1759988013830,0.77160596,4453.6,4453.5,1.50654774]
[1759988014125,1.17568596,4453.6,4453.5,1.15754774]
[1759988014431,1.17568596,4453.6,4453.5,0.22665774]
[1759988015130,4.08950816,4453.6,4453.5,0.22665774]
[1759988019135,4.08950816,4453.6,4453.5,0.98665774]
[1759988022037,4.08950816,4453.6,4453.5,0.78085774]
[1759988023126,4.08950816,4453.6,4453.5,0.56345774]
[1759988023936,4.08950816,4453.6,4453.5,0.00165774]
[1759988024237,1.18086,4452.7,4452.6,1.73891872]
[1759988024436,1.18086,4452.7,4452.6,1.96391872]
[1759988024939,1.18086,4452.7,4452.6,2.17861872]
[1759988025139,0.4378,4452.7,4452.6,2.58450652]
[1759988025439,0.4378,4452.7,4452.6,1.3775878]
[1759988025634,1.18086,4452.7,4452.6,0.2267178]
[1759988025838,4.15139379,4452.7,4452.6,0.2267178]
[1759988031241,4.15139379,4452.7,4451.6,1.52507135]
[1759988031242,1.18095,4451.7,4451.6,1.52507135]
[1759988031543,1.18095,4451.7,4451.6,0.5419]
[1759988032143,1.18095,4451.7,4451.6,0.31962392]
[1759988032344,4.13074223,4451.7,4451.6,0.54462392]
[1759988032643,4.99560035,4451.7,4451.6,0.22772392]
[1759988033546,4.99560035,4451.7,4451.6,0.00272392]
[1759988033948,4.99560035,4451.7,4451.1,0.225]
[1759988033949,1.181,4451.2,4451.1,0.225]
[1759988034156,2.04585812,4451.2,4451.1,0.225]
[1759988034347,4.97001911,4451.2,4451.1,0.225]
[1759988034950,4.97001911,4451.2,4451.1,0.22774787]
[1759988036255,4.10516099,4451.2,4451.1,0.22774787]
[1759988036655,4.10516099,4451.2,4451.1,0.54464787]
[1759988038856,4.10516099,4451.2,4451.1,0.22774787]
[1759988041055,4.10516099,4451.2,4451.1,0.00274787]
[1759988041650,0.2158,4449.9,4449.8,0.7467]
[1759988041850,0.2158,4449.9,4449.8,0.8337]
[1759988042056,0.7767,4449.9,4449.8,1.23813]
[1759988042660,0.77855554,4449.9,4449.8,1.24025264]
[1759988043054,0.77855554,4449.9,4449.8,0.62112264]
[1759988044551,0.77855554,4449.9,4449.8,0.40602264]
[1759988045357,0.77855554,4449.9,4449.8,0.62112264]
[1759988045751,0.77855554,4449.9,4449.8,0.83582264]
[1759988046356,0.77855554,4449.9,4449.8,0.62112264]
[1759988046557,3.68552794,4449.9,4449.8,0.08912264]
[1759988048860,4.08994794,4449.9,4449.8,0.08912264]
[1759988052660,4.08994794,4449.9,4449.8,0.49355264]
[1759988052854,3.34662794,4449.9,4449.8,1.24705264]
[1759988053465,4.08954794,4449.9,4449.8,1.24705264]
[1759988054065,3.68512794,4449.9,4449.8,1.24705264]
[1759988054268,3.34662794,4449.9,4449.8,1.24705264]
[1759988054963,3.75104794,4449.9,4449.8,1.24705264]
[1759988055162,4.08954794,4449.9,4449.8,1.24705264]
[1759988056076,4.08954794,4449.9,4449.8,0.80455264]
[1759988056470,4.08954794,4449.9,4449.8,1.02195264]
[1759988059480,4.08954794,4449.9,4449.8,0.08912264]
[1759988059979,4.08954794,4449.9,4449.8,0.00212264]
[1759988059980,5.16979072,4449.9,4449.8,0.00212264]
[1759988060182,5.16979072,4449.9,4449.8,0.22712264]
[1759988061571,5.16979072,4449.9,4449.8,0.00212264]
[1759988061781,5.86483959,4449.9,4449.8,0.00212264]
[1759988062277,1.19456,4449.4,4449.3,0.225]
[1759988062481,2.27480278,4449.4,4449.3,0.225]
[1759988062682,5.24833107,4449.4,4449.3,0.225]
[1759988062980,0.7901,4448.6,4448.5,1.61317011]
[1759988063180,0.7901,4448.6,4448.5,0.94327962]
[1759988063380,0.7901,4448.6,4448.5,1.16067962]
[1759988063777,0.7901,4448.6,4448.5,2.37056738]
[1759988064181,0.7901,4448.6,4448.5,1.74862738]
[1759988064582,0.7901,4448.6,4448.5,1.96602738]
[1759988064787,0.7901,4448.6,4448.5,0.22773962]
[1759988065483,0.7901,4448.6,4448.5,0.53873962]
[1759988065683,0.7901,4448.6,4448.5,0.75613962]
[1759988066687,1.19464,4448.6,4448.5,1.16067962]
[1759988067782,0.7901,4448.6,4448.5,1.51137962]
[1759988074191,0.1251,4449.0,4448.8,0.2174]
[1759988074192,0.40452,4448.9,4448.8,0.2174]
[1759988074396,0.62792,4448.9,4448.8,0.9785]
[1759988074693,3.41787459,4448.9,4448.8,1.38302]
[1759988074895,0.96638,4449.2,4449.1,0.7535]
[1759988075088,0.96638,4449.2,4449.1,0.9785]
[1759988075394,3.85178612,4449.2,4449.1,0.9785]
[1759988075989,4.07998612,4449.2,4449.1,0.9785]
[1759988076797,4.07998612,4449.2,4449.1,0.536]
[1759988076992,4.07998612,4449.2,4449.1,0.7534]
[1759988077886,4.07998612,4449.2,4449.1,0.9785]
[1759988078094,4.07998612,4449.2,4449.1,1.38299]
[1759988078792,4.07998612,4449.2,4449.1,0.9785]
[1759988078987,4.07998612,4449.2,4449.1,1.38299]
[1759988082592,4.07998612,4449.2,4449.1,0.9785]
[1759988083098,0.7901,4449.2,4449.1,1.38299]
[1759988083290,1.19458,4449.2,4449.1,1.38299]
[1759988083485,1.19458,4449.2,4449.1,0.225]
[1759988083692,5.24973649,4449.2,4449.1,0.225]
[1759988084498,10.24973649,4449.2,4449.1,0.225]
[1759988085093,4.16949371,4449.2,4449.1,0.225]
[1759988085701,0.84492,4448.8,4448.7,0.5622]
[1759988085996,1.17772,4448.8,4448.7,0.5622]
[1759988086197,4.12100439,4448.8,4448.7,0.225]
[1759988087708,4.12100439,4448.8,4448.7,0.5622]
[1759988090294,4.12100439,4448.8,4448.7,1.43488776]
[1759988091497,4.12100439,4448.8,4448.7,0.225]
[1759988099707,3.71648439,4448.8,4448.7,0.9838]
[1759988099908,3.71648439,4448.8,4448.7,2.19368776]
[1759988100207,4.12100439,4448.8,4448.7,2.19368776]
[1759988102807,4.12100439,4448.8,4448.7,0.9838]
[1759988103002,4.12100439,4448.8,4448.7,0.5622]
[1759988103306,4.12100439,4448.8,4448.7,0.225]
[1759988104016,5.20124717,4448.8,4448.7,0.225]
[1759988106609,4.12100439,4448.8,4448.7,0.225]
[1759988108905,1.16454,4448.6,4448.5,1.21262738]
[1759988109105,2.24478278,4448.6,4448.5,0.00273962]
[1759988109414,5.19461411,4448.6,4448.5,0.00273962]
[1759988110817,4.11437133,4448.6,4448.5,0.00273962]
[1759988114219,4.58544824,4448.6,4448.5,0.00273962]
[1759988115710,4.81044824,4448.6,4448.5,0.00273962]
[1759988115910,0.40459,4448.0,4447.9,1.23237053]
[1759988116108,2.12544916,4448.0,4447.9,0.02248277]
[1759988116311,5.01899208,4448.0,4447.9,0.02248277]
[1759988116812,5.01899208,4448.0,4447.9,0.0242725]
[1759988119812,1.26484,4447.5,4447.4,0.225]
[1759988120013,2.13279916,4447.5,4447.4,0.225]
[1759988120314,5.0817026,4447.5,4447.4,0.225]
[1759988120819,4.21374344,4447.5,4447.4,0.55052447]
[1759988121017,4.21374344,4447.5,4447.4,0.00242447]
[1759988126819,4.11354344,4447.5,4447.4,0.53452447]
[1759988127119,4.11354344,4447.5,4447.4,0.74622447]
[1759988127318,3.79324344,4447.5,4447.4,0.74622447]
[1759988127816,4.11354344,4447.5,4447.4,0.74622447]
[1759988128016,3.35354344,4447.5,4447.4,1.15086447]
[1759988128214,3.35354344,4447.5,4447.4,0.74622447]
[1759988128614,3.58004344,4447.5,4447.4,0.74622447]
[1759988128809,4.11354344,4447.5,4447.4,0.74622447]
[1759988129122,4.11354344,4447.5,4447.4,1.15086447]
[1759988129618,1.0114,4448.4,4447.8,0.40461]
[1759988129826,0.2265,4448.0,4447.9,1.61175916]
[1759988130016,3.48817813,4448.0,4447.9,2.01635916]
[1759988130618,3.89276813,4448.0,4447.9,2.01635916]
[1759988131921,4.10596813,4448.0,4447.9,1.61175916]
[1759988133118,3.57246813,4448.0,4447.9,2.01635916]
[1759988133721,3.89276813,4448.0,4447.9,2.01635916]
[1759988134226,4.10596813,4448.0,4447.9,1.61175916]
[1759988135320,1.16464,4447.5,4447.4,1.21231223]
[1759988135520,1.26484,4447.5,4447.4,0.22742447]
[1759988135722,4.14234228,4447.5,4447.4,0.22742447]
[1759988136319,4.14234228,4447.5,4447.4,1.43731223]
[1759988136818,4.14234228,4447.5,4447.4,1.76041223]
[1759988138735,4.14234228,4447.5,4447.4,0.22742447]
[1759988147139,4.14234228,4447.5,4447.4,0.00242447]
[1759988151140,4.14234228,4447.5,4447.4,0.32282447]
[1759988154941,4.04214228,4447.5,4447.4,0.54962447]
[1759988156443,4.04214228,4447.5,4447.4,1.16906447]
[1759988156649,3.72184228,4447.5,4447.4,1.16906447]
[1759988157050,4.06284228,4447.5,4447.4,1.16906447]
[1759988157649,2.87750228,4447.5,4447.4,1.16906447]
[1759988157850,0.341,4448.0,4447.7,1.16661]
[1759988157851,0.2173,4447.8,4447.7,1.16661]
[1759988158057,0.62191,4447.8,4447.7,2.25956916]
[1759988158445,0.2173,4447.8,4447.7,2.25956916]
[1759988158760,0.2173,4447.9,4447.8,1.16661]
[1759988159144,2.90536059,4447.9,4447.8,6.16661]
[1759988159452,0.2173,4448.6,4448.5,0.53094]
[1759988159651,0.2173,4448.6,4448.5,2.06549916]
[1759988160051,0.2173,4448.6,4448.5,2.38589916]
[1759988160247,0.2173,4448.6,4448.5,1.98135916]
[1759988160452,0.4311,4448.6,4448.5,1.98135916]
[1759988161852,0.7721,4448.6,4448.5,1.1134]
[1759988162051,0.7721,4449.4,4449.3,0.762]
[1759988162258,0.83556,4449.4,4449.3,1.85495916]
[1759988162757,1.17656,4449.4,4449.3,1.85495916]
[1759988162951,0.83556,4449.4,4449.3,1.85495916]
[1759988163356,0.4311,4449.4,4449.3,1.85495916]
[1759988164151,0.40444,4449.7,4449.3,1.30775916]
[1759988164356,0.21915554,4449.9,4449.8,0.762]
[1759988164557,0.21915554,4449.9,4449.8,0.987]
[1759988164952,0.43295554,4449.9,4449.8,0.987]
[1759988166550,0.00185554,4449.9,4449.8,0.987]
[1759988167853,0.77395554,4449.9,4449.8,0.987]
[1759988168053,0.77395554,4449.9,4449.8,0.7722]
[1759988168360,0.77395554,4449.9,4449.8,0.5472]
[1759988168559,0.77395554,4449.9,4449.8,0.7722]
[1759988169051,3.65896899,4449.9,4449.8,0.225]
[1759988169251,1.16896,4449.4,4449.3,0.3199]
[1759988169460,1.16896,4449.4,4449.3,0.5449]
[1759988169657,4.13852184,4449.4,4449.3,0.5449]
[1759988170360,4.13852184,4449.4,4449.3,0.7644]
[1759988170659,4.13852184,4449.4,4449.3,0.9735]
[1759988171559,4.13852184,4449.4,4449.3,0.5449]
[1759988172159,4.13852184,4449.4,4449.3,0.7644]
[1759988174154,4.13852184,4449.4,4449.3,0.9735]
[1759988177061,4.13852184,4449.4,4449.3,1.37797]
[1759988178665,4.13852184,4449.4,4449.3,0.9735]
[1759988179263,4.13852184,4449.4,4449.3,1.37797]
[1759988185560,3.39616184,4449.4,4449.3,1.37797]
[1759988185765,0.95277554,4449.9,4449.8,0.4286]
[1759988185974,0.21045554,4449.9,4449.8,1.37793]
[1759988189366,0.00185554,4449.9,4449.8,1.37793]
[1759988189562,0.00185554,4449.9,4449.8,2.58910598]
[1759988189772,0.40627554,4449.9,4449.8,2.58910598]
[1759988189973,0.61487554,4449.9,4449.8,2.58910598]
[1759988190173,0.21045554,4449.9,4449.8,2.58910598]
[1759988190570,1.17077554,4449.9,4449.8,2.58910598]
[1759988191867,0.83287554,4449.9,4449.8,2.58910598]
[1759988192371,0.42845554,4449.9,4449.8,1.37793]
[1759988192871,0.83287554,4449.9,4449.8,1.37793]
[1759988193075,0.83287554,4449.9,4449.8,2.59044072]
[1759988193271,0.83287554,4449.9,4449.8,1.37793]
[1759988193775,1.17077554,4449.9,4449.8,1.37793]
[1759988193972,4.09333775,4449.9,4449.8,1.84217721]
[1759988194364,4.09333775,4449.9,4449.8,2.16207721]
[1759988194565,4.09333775,4449.9,4449.8,1.97714721]
[1759988195378,4.09333775,4449.9,4449.8,2.38157721]
[1759988195577,3.68891775,4449.9,4449.8,2.59067721]
[1759988195882,0.40627554,4449.9,4449.8,2.59076066]
[1759988196073,0.61487554,4449.9,4449.8,1.37793]
[1759988196582,0.61487554,4449.9,4449.8,0.9735]
[1759988196773,0.95277554,4449.9,4449.8,2.18632825]
[1759988197083,1.17077554,4449.9,4449.8,2.18632825]
[1759988197269,1.01107,4449.8,4448.5,0.128]
[1759988197571,0.40454,4448.6,4448.5,0.128]
[1759988197771,0.40458,4448.1,4448.0,0.1264]
[1759988197976,0.40458,4448.1,4448.0,0.4463]
[1759988198170,4.36489448,4448.1,4448.0,0.4463]
[1759988198372,9.83410551,4448.1,4448.0,0.4463]
[1759988200375,3.28438019,4448.1,4448.0,0.8849]
[1759988208485,3.28438019,4448.1,4448.0,0.4463]
[1759988208678,0.40463,4447.6,4447.5,0.128]
[1759988208885,1.71314429,4447.6,4447.4,4.47e-06]
[1759988209079,0.40467,4447.1,4446.0,0.13]
[1759988209275,0.63267,4447.1,4446.0,0.13]
[1759988209581,0.40472,4446.6,4446.0,0.13]
[1759988209784,8.09559508,4447.1,4446.0,0.13]
[1759988209785,0.40476,4446.1,4446.0,0.13]
[1759988209980,0.40738599,4446.1,4446.0,0.13268168]
[1759988210187,3.2730164,4446.1,4446.0,0.13268168]
[1759988210887,3.2730164,4446.1,4446.0,0.46468168]
[1759988212984,3.2730164,4446.1,4446.0,0.88068168]
[1759988212985,2.8682564,4446.1,4446.0,0.88068168]
[1759988215392,2.8682564,4446.1,4446.0,0.46468168]
[1759988221896,0.40485,4445.2,4445.1,0.332]
[1759988222093,0.4049,4444.6,4444.5,0.462]
[1759988222300,1.71341429,4444.6,4444.5,0.462]
[1759988222493,4.64524874,4444.6,4444.5,0.13]
[1759988222796,4.64624874,4444.6,4444.5,0.46383779]
[1759988223093,3.33673445,4444.6,4444.5,0.46383779]
[1759988223494,2.93183445,4444.6,4444.5,0.46383779]
[1759988223699,2.93183445,4444.6,4444.5,0.67313779]